bitfinex/quotes_BTCUSD_20260126
["timestamp","ask_amount","ask_price","bid_price","bid_amount"]
[1769463029532,0.56296657,88115.0,88101.0,0.02]
[1769463029871,0.56296657,88115.0,88098.0,0.08716212]
[1769463029872,0.01134893,88114.0,88098.0,0.08716212]
[1769463029984,0.01134893,88114.0,88098.0,0.07466922]
[1769463030185,0.01134893,88114.0,88098.0,0.05717832]
[1769463030492,0.01134893,88114.0,88097.0,0.65125742]
[1769463031114,0.01134906,88113.0,88098.0,0.02442011]
[1769463031939,0.01134919,88112.0,88098.0,0.02442011]
[1769463032080,0.03452585,88115.0,88099.0,0.54788278]
[1769463032416,0.52844072,88119.0,88100.0,0.02120938]
[1769463032630,0.02317705,88118.0,88100.0,0.546615]
[1769463032846,0.02317705,88118.0,88100.0,0.53055699]
[1769463033050,0.02317705,88118.0,88100.0,0.50164618]
[1769463033244,0.02317705,88118.0,88100.0,0.46951389]
[1769463033463,0.02317705,88118.0,88100.0,0.495582]
[1769463033665,0.02317705,88118.0,88100.0,0.46021624]
[1769463033869,0.52844072,88117.0,88100.0,0.4280549]
[1769463034080,0.55161777,88117.0,88100.0,0.34410166]
[1769463034315,0.55161777,88117.0,88100.0,0.33122884]
[1769463034447,0.55161777,88117.0,88095.0,0.22004]
[1769463034448,0.0113488,88115.0,88097.0,0.54788278]
[1769463034641,0.61971009,88116.0,88097.0,0.54788278]
[1769463034829,0.0113488,88115.0,88097.0,0.54788278]
[1769463035029,0.01134906,88113.0,88097.0,0.54788278]
[1769463035237,0.06809386,88114.0,88097.0,0.54788278]
[1769463035439,0.56296644,88116.0,88097.0,0.57230289]
[1769463035641,0.61971009,88116.0,88097.0,0.57230289]
[1769463036257,0.0113488,88115.0,88097.0,0.57230289]
[1769463036470,0.01134906,88113.0,88097.0,0.57230289]
[1769463036693,0.01134906,88113.0,88097.0,0.56264715]
[1769463036894,0.01134906,88113.0,88097.0,0.53689726]
[1769463037073,0.01134893,88114.0,88097.0,0.53689726]
[1769463037425,0.01134944,88110.0,88097.0,0.53689726]
[1769463037628,0.01134893,88114.0,88099.0,0.54788278]
[1769463037840,0.03452572,88116.0,88099.0,0.57230289]
[1769463038072,0.02317705,88116.0,88099.0,0.57230289]
[1769463038288,0.02317705,88116.0,88099.0,0.57906962]
[1769463038486,0.02317705,88116.0,88100.0,0.57230289]
[1769463039475,0.05674418,88115.0,88100.0,0.57230289]
[1769463039683,0.07992083,88116.0,88100.0,0.57230289]
[1769463039893,0.02317705,88116.0,88100.0,0.57230289]
[1769463040094,0.06809162,88117.0,88101.0,0.08235297]
[1769463040276,0.06809162,88117.0,88101.0,0.02120039]
[1769463040514,0.0113488,88115.0,88100.0,0.54788278]
[1769463040675,0.01134919,88112.0,88100.0,0.53659009]
[1769463041008,0.01134893,88114.0,88100.0,0.51023348]
[1769463041314,0.01134893,88114.0,88100.0,0.49516816]
[1769463041556,0.01134906,88113.0,88100.0,0.47821585]
[1769463041756,0.01134932,88111.0,88100.0,0.45749086]
[1769463041955,0.01134932,88111.0,88100.0,0.44429908]
[1769463042113,0.05674654,88112.0,88100.0,0.42921976]
[1769463042114,0.01134919,88112.0,88100.0,0.42921976]
[1769463042317,0.01134893,88114.0,88100.0,0.49405086]
[1769463042518,0.0113488,88115.0,88100.0,0.48085278]
[1769463042716,0.0113488,88115.0,88100.0,0.46010799]
[1769463042915,0.01134893,88114.0,88100.0,0.37264381]
[1769463043163,0.06809308,88115.0,88100.0,0.35377516]
[1769463043365,0.01134893,88114.0,88100.0,0.33490151]
[1769463043524,0.01134893,88114.0,88100.0,0.32168698]
[1769463043703,0.53978913,88118.0,88100.0,0.30658166]
[1769463043908,0.02317705,88117.0,88101.0,0.05375871]
[1769463044552,0.04307975,88121.0,88103.0,0.02442011]
[1769463044553,0.03173172,88121.0,88103.0,0.02442011]
[1769463044762,0.03173172,88121.0,88106.0,0.54788278]
[1769463044927,0.03173172,88121.0,88108.0,0.54788278]
[1769463045337,0.03173172,88121.0,88101.0,0.05375871]
[1769463045338,0.03173172,88121.0,88112.0,0.54788278]
[1769463045583,0.03173172,88121.0,88112.0,0.57230289]
[1769463047275,0.03173172,88121.0,88112.0,0.55292568]
[1769463049144,0.03173172,88121.0,88113.0,0.05529257]
[1769463049361,0.00019,88127.0,88114.0,0.51969086]
[1769463049585,0.00019,88127.0,88114.0,0.49374879]
[1769463050026,0.00019,88127.0,88114.0,0.46466628]
[1769463050227,0.00019,88127.0,88114.0,0.46143424]
[1769463050443,0.00019,88127.0,88113.0,0.02420895]
[1769463050672,0.00019,88127.0,88113.0,0.01451188]
[1769463050871,0.00019,88127.0,88109.0,0.51969086]
[1769463051092,0.00019,88127.0,88109.0,0.54403958]
[1769463051529,0.02438957,88129.0,88111.0,0.51969086]
[1769463051729,0.02438957,88129.0,88111.0,0.50996238]
[1769463051936,0.03573567,88136.0,88112.0,0.02420895]
[1769463052144,0.02438957,88136.0,88115.0,0.51969086]
[1769463052364,0.01134623,88135.0,88117.0,0.51969086]
[1769463052586,0.05673242,88134.0,88117.0,0.51969086]
[1769463052794,0.06807899,88133.0,88118.0,0.0713565]
[1769463053017,0.06807899,88133.0,88118.0,0.49705759]
[1769463053243,0.06807899,88133.0,88118.0,0.4873572]
[1769463053451,0.01134687,88130.0,88118.0,0.4873572]
[1769463053667,0.011347,88129.0,88118.0,0.4873572]
[1769463054317,0.011347,88129.0,88118.0,0.46472197]
[1769463054513,0.011347,88129.0,88118.0,0.43885146]
[1769463054723,0.011347,88129.0,88118.0,0.4065108]
[1769463054942,0.011347,88129.0,88118.0,0.3774018]
[1769463055144,0.011347,88129.0,88118.0,0.34829053]
[1769463055348,0.06808332,88128.0,88114.0,0.17456]
[1769463055549,0.06808332,88128.0,88114.0,0.69425086]
[1769463056386,0.01134713,88128.0,88115.0,0.51969086]
[1769463056924,0.011347,88129.0,88115.0,0.51969086]
[1769463057133,0.02438957,88131.0,88115.0,0.59155082]
[1769463057983,0.011347,88129.0,88115.0,0.51969086]
[1769463058198,0.0113461,88136.0,88117.0,0.51969086]
[1769463058410,0.02438957,88138.0,88119.0,0.51969086]
[1769463058619,0.01134623,88135.0,88119.0,0.54389981]
[1769463058825,0.01134635,88134.0,88119.0,0.54389981]
[1769463059038,0.01134648,88133.0,88119.0,0.51969086]
[1769463059665,0.01134661,88132.0,88119.0,0.51969086]
[1769463059875,0.0680797,88132.0,88119.0,0.51969086]
[1769463060108,0.01134661,88132.0,88119.0,0.51969086]
[1769463060545,0.01134674,88131.0,88119.0,0.51969086]
[1769463060815,0.01134623,88135.0,88110.0,0.38009025]
[1769463060816,0.01134816,88120.0,88110.0,0.17452]
[1769463061031,0.5816298,88123.0,88110.0,0.17452]
[1769463061032,0.03573747,88122.0,88110.0,0.17452]
[1769463061254,0.01134829,88119.0,88109.0,0.00013977]
[1769463061500,0.03573798,88118.0,88109.0,0.00013977]
[1769463061717,0.03573798,88118.0,88098.0,0.02420895]
[1769463061718,0.02438957,88102.0,88081.0,0.02420895]
[1769463061938,0.02438957,88102.0,88084.0,0.54389981]
[1769463062159,0.02438957,88102.0,88086.0,0.51969086]
[1769463062832,0.55724023,88088.0,88060.0,0.51618793]
[1769463063049,0.55724023,88087.0,88068.0,0.17452]
[1769463063271,0.02438957,88086.0,88069.0,0.51969086]
[1769463063696,0.02438957,88086.0,88068.0,0.17452]
[1769463063914,0.02438957,88079.0,88068.0,0.17452]
[1769463064126,0.02438957,88079.0,88068.0,0.17128516]
[1769463064353,0.02438957,88079.0,88068.0,0.14216851]
[1769463064582,0.02452921,88088.0,88079.0,0.01]
[1769463065014,0.02452921,88088.0,88069.0,0.51969086]
[1769463065878,0.55737987,88088.0,88069.0,0.51969086]
[1769463066073,0.02438957,88087.0,88069.0,0.51969086]
[1769463066304,0.02438957,88087.0,88069.0,0.59201813]
[1769463066722,0.02438957,88087.0,88069.0,0.51969086]
[1769463067179,0.02438957,88086.0,88069.0,0.51969086]
[1769463067861,0.03574236,88084.0,88069.0,0.48409309]
[1769463068060,0.02438957,88083.0,88068.0,0.1356974]
[1769463068330,0.55724023,88083.0,88068.0,0.1356974]
[1769463068475,0.02438957,88082.0,88068.0,0.1356974]
[1769463068682,0.02438957,88079.0,88068.0,0.1356974]
[1769463068923,0.55724023,88077.0,88065.0,0.0457369]
[1769463069167,0.11160278,88078.0,88065.0,0.0457369]
[1769463069168,0.02438957,88072.0,88065.0,0.0457369]
[1769463069312,0.02438957,88071.0,88065.0,0.0389089]
[1769463069517,0.02438957,88071.0,88065.0,0.0354949]
[1769463069682,0.02438957,88071.0,88052.0,0.51969086]
[1769463069885,0.02438957,88069.0,88052.0,0.51969086]
[1769463070086,0.02438957,88068.0,88052.0,0.51969086]
[1769463070561,0.02438957,88068.0,88047.0,0.0002969]
[1769463070562,0.02438957,88061.0,88047.0,0.0002969]
[1769463071153,0.02438957,88061.0,88047.0,0.51998776]
[1769463071662,0.02438957,88059.0,88047.0,0.0002969]
[1769463071880,0.38009025,88060.0,88047.0,0.0002969]
[1769463071881,0.55724023,88058.0,88047.0,0.00076336]
[1769463072010,0.02438957,88055.0,88047.0,0.00076336]
[1769463073387,0.02438957,88055.0,88043.0,0.17456]
[1769463073546,0.02438957,88055.0,88043.0,0.17469979]
[1769463074333,0.01135524,88065.0,88043.0,0.17469979]
[1769463074546,0.55724023,88064.0,88043.0,0.69439065]
[1769463074754,0.02438957,88061.0,88043.0,0.69439065]
[1769463074964,0.5816298,88061.0,88043.0,0.69439065]
[1769463075819,0.01135602,88059.0,88043.0,0.69439065]
[1769463076080,0.39144614,88060.0,88043.0,0.69439065]
[1769463076288,0.47261523,88060.0,88043.0,0.69439065]
[1769463076480,0.01135615,88058.0,88043.0,0.17469979]
[1769463076810,0.01135615,88058.0,88041.0,0.04548]
[1769463076811,0.02438957,88052.0,88041.0,0.04548]
[1769463077059,0.38009025,88053.0,88041.0,0.04548]
[1769463077060,0.02438957,88050.0,88041.0,0.04548]
[1769463077398,0.55724023,88051.0,88041.0,0.04548]
[1769463080171,0.06814005,88054.0,88041.0,0.02554027]
[1769463080367,0.06814005,88054.0,88041.0,0.00610089]
[1769463080572,0.06814032,88054.0,88041.0,0.00610089]
[1769463080728,0.54236899,88054.0,88041.0,0.00610089]
[1769463082638,0.02438957,88055.0,88041.0,0.00610089]
[1769463083278,0.54236899,88056.0,88041.0,0.00610089]
[1769463083654,0.65397177,88056.0,88041.0,0.00610089]
[1769463083981,0.65397177,88056.0,88039.0,0.56371]
[1769463083982,0.54236899,88056.0,88039.0,0.56371]
[1769463084219,0.03412435,88063.0,88040.0,0.38009025]
[1769463084422,0.17464,88066.0,88044.0,0.53917778]
[1769463084594,0.20890159,88066.0,88047.0,0.02434392]
[1769463084738,0.03426159,88066.0,88048.0,0.5635217]
[1769463084948,0.03456506,88065.0,88048.0,0.61987387]
[1769463085155,0.38009025,88060.0,88048.0,0.08069609]
[1769463085374,0.38009025,88060.0,88048.0,0.02434392]
[1769463085774,0.38009025,88060.0,88043.0,0.02434392]
[1769463085976,0.54236899,88062.0,88044.0,0.5635217]
[1769463086796,0.54236899,88062.0,88045.0,0.02434392]
[1769463087416,0.54236899,88062.0,88045.0,0.00489489]
[1769463087653,0.56557881,88062.0,88044.0,0.53917778]
[1769463089954,0.02320982,88062.0,88045.0,0.0943612]
[1769463090194,0.02320982,88062.0,88045.0,0.52942736]
[1769463090373,0.01135602,88059.0,88045.0,0.50991928]
[1769463090571,0.03456545,88062.0,88045.0,0.49366167]
[1769463090572,0.07998821,88062.0,88045.0,0.49366167]
[1769463090775,0.02320982,88062.0,88045.0,0.47415143]
[1769463090971,0.02320982,88062.0,88045.0,0.45789202]
[1769463091212,0.03456545,88062.0,88045.0,0.44002715]
[1769463091414,0.03456545,88062.0,88045.0,0.42051224]
[1769463091558,0.01135576,88061.0,88045.0,0.402604]
[1769463091769,0.02320982,88061.0,88045.0,0.38798507]
[1769463091968,0.03456558,88061.0,88045.0,0.37497337]
[1769463092226,0.03456558,88061.0,88045.0,0.3603187]
[1769463092375,0.03456558,88061.0,88045.0,0.34730676]
[1769463092583,0.03456558,88061.0,88045.0,0.33268206]
[1769463092783,0.02320982,88061.0,88045.0,0.31641486]
[1769463092983,0.02320982,88061.0,88045.0,0.2985074]
[1769463093186,0.02320982,88061.0,88045.0,0.28226363]
[1769463093407,0.02320982,88061.0,88045.0,0.26599413]
[1769463093609,0.05678299,88055.0,88045.0,0.25134015]
[1769463093785,0.01135615,88058.0,88045.0,0.23670714]
[1769463094041,0.01135615,88058.0,88045.0,0.22043554]
[1769463094249,0.01135615,88058.0,88045.0,0.01028387]
[1769463094250,0.06813973,88055.0,88045.0,0.01028387]
[1769463094411,0.01135653,88055.0,88042.0,0.02434392]
[1769463094591,0.01135653,88055.0,88042.0,0.5635217]
[1769463094996,0.01135628,88057.0,88042.0,0.5635217]
[1769463095197,0.06813902,88056.0,88043.0,0.59552995]
[1769463095560,0.06813862,88056.0,88043.0,0.59552995]
[1769463095763,0.06813945,88055.0,88043.0,0.59552995]
[1769463095897,0.01135653,88055.0,88043.0,0.59552995]
[1769463096352,0.01135653,88055.0,88043.0,0.05635217]
[1769463096496,0.01135653,88055.0,88042.0,0.5635217]
[1769463096701,0.0567838,88054.0,88042.0,0.5635217]
[1769463096899,0.06814048,88054.0,88042.0,0.5635217]
[1769463097102,0.01135666,88054.0,88042.0,0.5635217]
[1769463097341,0.06813948,88055.0,88042.0,0.5635217]
[1769463097522,0.06814024,88054.0,88042.0,0.5635217]
[1769463097727,0.54236899,88059.0,88042.0,0.5635217]
[1769463097924,0.17464,88069.0,88042.0,0.53917778]
[1769463097925,0.01135473,88069.0,88042.0,0.53917778]
[1769463098126,0.11356295,88065.0,88050.0,0.53917778]
[1769463098379,0.02334947,88066.0,88050.0,0.53917778]
[1769463099158,0.11360987,88065.0,88050.0,0.53917778]
[1769463099360,0.11360987,88064.0,88050.0,0.53917778]
[1769463099565,0.02334947,88066.0,88050.0,0.53917778]
[1769463099805,0.11360987,88065.0,88052.0,0.53917778]
[1769463099946,0.11360987,88064.0,88052.0,0.53917778]
[1769463100143,0.11364766,88063.0,88052.0,0.53917778]
[1769463100345,0.02334947,88066.0,88052.0,0.53917778]
[1769463100555,0.11364665,88065.0,88052.0,0.53917778]
[1769463100758,0.00013965,88066.0,88052.0,0.5635217]
[1769463100988,0.11364661,88065.0,88052.0,0.5635217]
[1769463101190,0.00013965,88066.0,88052.0,0.5635217]
[1769463101191,0.11364661,88064.0,88052.0,0.5635217]
[1769463101429,0.00013965,88066.0,88052.0,0.5635217]
[1769463101548,0.1136532,88065.0,88052.0,0.5635217]
[1769463101754,0.1136532,88064.0,88052.0,0.53917778]
[1769463101954,0.00013965,88066.0,88052.0,0.59552995]
[1769463103009,0.11365215,88065.0,88052.0,0.53917778]
[1769463103213,0.00013965,88066.0,88052.0,0.53917778]
[1769463103609,0.11364985,88065.0,88052.0,0.53917778]
[1769463103915,0.00013965,88066.0,88052.0,0.53917778]
[1769463104326,0.11364605,88065.0,88052.0,0.53917778]
[1769463104525,0.00013965,88066.0,88052.0,0.53917778]
[1769463104526,0.11364605,88064.0,88052.0,0.53917778]
[1769463104730,0.11364605,88063.0,88052.0,0.53917778]
[1769463104903,0.00013965,88066.0,88052.0,0.63353898]
[1769463105254,0.11364601,88065.0,88052.0,0.63353898]
[1769463105456,0.11364601,88064.0,88052.0,0.63353898]
[1769463105614,0.11364601,88063.0,88052.0,0.53917778]
[1769463105799,0.00013965,88066.0,88052.0,0.53917778]
[1769463106000,0.11364613,88065.0,88052.0,0.53917778]
[1769463106218,0.11364613,88064.0,88052.0,0.53917778]
[1769463106432,0.11364613,88063.0,88052.0,0.53917778]
[1769463106647,0.00013965,88066.0,88052.0,0.63353898]
[1769463106814,0.11364465,88065.0,88052.0,0.63353898]
[1769463107019,0.11364465,88064.0,88052.0,0.63353898]
[1769463107267,0.11364465,88063.0,88052.0,0.63353898]
[1769463107468,0.00013965,88066.0,88052.0,0.53917778]
[1769463107671,0.11364058,88065.0,88051.0,0.02434392]
[1769463107896,0.11364058,88064.0,88051.0,0.5635217]
[1769463108032,0.11364058,88063.0,88051.0,0.5635217]
[1769463108233,0.00013965,88066.0,88051.0,0.5635217]
[1769463108457,0.1136378,88065.0,88051.0,0.5635217]
[1769463108664,0.1136378,88064.0,88051.0,0.5635217]
[1769463108839,0.1136378,88063.0,88051.0,0.5635217]
[1769463109041,0.00013965,88066.0,88051.0,0.5635217]
[1769463109351,0.11363638,88065.0,88051.0,0.5635217]
[1769463109667,0.11363638,88064.0,88051.0,0.5635217]
[1769463109922,0.13359272,88063.0,88043.0,0.56247176]
[1769463110087,0.02358694,88059.0,88041.0,0.1476]
[1769463110264,0.02358694,88059.0,88042.0,0.56247176]
[1769463110473,0.02358694,88059.0,88041.0,0.1476]
[1769463110474,0.55845361,88055.0,88041.0,0.1476]
[1769463110678,0.02358694,88052.0,88041.0,0.1476]
[1769463111498,0.55845361,88052.0,88041.0,0.1416]
[1769463111727,0.02358694,88051.0,88041.0,0.1416]
[1769463112678,0.02358694,88051.0,88035.0,0.17464]
[1769463112879,0.02358694,88049.0,88027.0,0.17464]
[1769463113135,0.55845361,88045.0,88027.0,0.17464]
[1769463113281,0.02358694,88043.0,88027.0,0.17464]
[1769463113688,0.02358694,88043.0,88028.0,0.56247176]
[1769463114138,0.02358694,88042.0,88027.0,0.17464]
[1769463114376,0.55845361,88041.0,88027.0,0.17464]
[1769463114581,0.02358694,88040.0,88027.0,0.17464]
[1769463114987,0.02358694,88039.0,88027.0,0.17464]
[1769463115194,0.55845361,88038.0,88027.0,0.17464]
[1769463115398,0.02358694,88037.0,88027.0,0.17464]
[1769463116260,0.55845361,88037.0,88027.0,0.17464]
[1769463116431,0.02358694,88036.0,88027.0,0.17464]
[1769463117283,0.02358694,88041.0,88027.0,0.17464]
[1769463117489,0.02358694,88041.0,88034.0,0.01606118]
[1769463117684,0.02358694,88041.0,88028.0,0.56247176]
[1769463117838,0.02358694,88047.0,88028.0,0.56251942]
[1769463118049,0.02358694,88046.0,88028.0,0.56251942]
[1769463118280,0.55845361,88046.0,88028.0,0.56251942]
[1769463118477,0.02358694,88045.0,88028.0,0.56251942]
[1769463119020,0.55845361,88043.0,88028.0,4.766e-05]
[1769463119143,0.02358694,88042.0,88028.0,4.766e-05]
[1769463120774,0.06047556,88041.0,88028.0,4.766e-05]
[1769463122380,0.56981169,88043.0,88028.0,4.766e-05]
[1769463122672,0.380868,88040.0,88028.0,4.766e-05]
[1769463122812,0.0113595,88032.0,88028.0,4.766e-05]
[1769463123011,0.58204055,88034.0,88022.0,0.04548]
[1769463123253,0.58204055,88034.0,88022.0,0.02096705]
[1769463123254,0.380868,88032.0,88022.0,0.02096705]
[1769463123457,0.66383162,88031.0,88022.0,7.416e-05]
[1769463123669,0.66383162,88031.0,88017.0,0.02359424]
[1769463124410,0.55845361,88031.0,88017.0,0.0161732]
[1769463124624,0.55845361,88031.0,88013.0,0.56247176]
[1769463125654,0.55845361,88031.0,88014.0,0.02359424]
[1769463125813,0.55845361,88031.0,88015.0,0.56247176]
[1769463126017,0.02358694,88034.0,88016.0,0.586066]
[1769463126199,0.02369265,88034.0,88016.0,0.586066]
[1769463127571,0.09970903,88033.0,88016.0,0.586066]
[1769463129721,0.68174958,88033.0,88016.0,0.586066]
[1769463130948,0.69310895,88033.0,88016.0,0.586066]
[1769463131152,0.380868,88030.0,88016.0,0.02359424]
[1769463133421,0.55845361,88029.0,88012.0,0.17468]
[1769463133627,0.380868,88022.0,88009.0,0.0004]
[1769463133834,0.55845361,88018.0,88009.0,0.0004]
[1769463134044,0.58204055,88016.0,87996.0,0.02359424]
[1769463134565,0.58204055,88016.0,87996.0,0.586066]
[1769463135212,0.28330902,88066.0,87990.0,0.555548]
[1769463135213,0.39223008,88012.0,87990.0,0.17468]
[1769463135397,0.55845361,88008.0,87990.0,0.17468]
[1769463135541,0.06817562,88008.0,87989.0,0.02371984]
[1769463135743,0.55845361,88005.0,87989.0,0.02371984]
[1769463135948,0.58204055,88005.0,87989.0,0.02371984]
[1769463136178,0.69196628,88005.0,87989.0,0.02371984]
[1769463136870,0.59340212,88016.0,87991.0,0.02359424]
[1769463137099,0.02358694,88008.0,87989.0,0.00018388]
[1769463137243,0.55845361,88007.0,87990.0,0.02359424]
[1769463137607,0.55845361,88007.0,87990.0,0.586066]
[1769463138212,0.55845361,88007.0,87991.0,0.02359424]
[1769463138768,0.11160278,88006.0,87991.0,0.02359424]
[1769463138974,0.06817357,88012.0,87991.0,0.02359424]
[1769463138975,0.06817099,88014.0,87991.0,0.02359424]
[1769463139184,0.57968975,88012.0,87992.0,0.52847496]
[1769463139557,0.380868,88010.0,87993.0,0.02326055]
[1769463139946,0.93808266,88010.0,87993.0,0.02326055]
[1769463140919,0.380868,88010.0,87993.0,0.02326055]
[1769463141048,0.55721466,88009.0,87993.0,0.02326055]
[1769463142455,0.02263198,88012.0,87993.0,0.02326055]
[1769463142734,0.06334282,88023.0,88003.0,0.02326055]
[1769463142735,0.17472,88019.0,88003.0,0.02326055]
[1769463144044,0.55721466,88022.0,88003.0,0.02326055]
[1769463144339,0.380868,88020.0,88003.0,0.02326055]
[1769463144544,0.93808266,88020.0,88003.0,0.02326055]
[1769463145331,0.94944371,88020.0,88003.0,0.02326055]
[1769463145679,0.01136131,88018.0,88003.0,0.02326055]
[1769463145849,0.01136144,88017.0,88003.0,0.02326055]
[1769463146227,0.06816819,88018.0,88003.0,0.02326055]
[1769463146430,0.01136144,88017.0,88003.0,0.02326055]
[1769463146630,0.01136157,88016.0,88003.0,0.02326055]
[1769463146832,0.01136208,88012.0,87991.0,0.02326055]
[1769463147047,0.93808266,88013.0,87993.0,0.52911599]
[1769463147231,0.55721466,88013.0,87995.0,0.52911599]
[1769463147431,0.55721466,88013.0,87996.0,0.02326055]
[1769463149289,0.56857661,88013.0,87996.0,0.02326055]
[1769463149496,0.06817279,88012.0,87996.0,0.02326055]
[1769463149659,0.06817369,88011.0,87996.0,0.02326055]
[1769463150097,0.01136208,88012.0,87996.0,0.02326055]
[1769463150252,0.66881744,88013.0,87996.0,0.02326055]
[1769463150454,0.55721466,88013.0,87996.0,0.55237654]
[1769463150719,0.55721466,88013.0,87997.0,0.02326055]
[1769463151295,0.55721466,88013.0,87990.0,0.380868]
[1769463151296,0.17472,88021.0,88013.0,0.01]
[1769463151495,0.0001222,88026.0,88013.0,0.52707833]
[1769463151724,0.0001222,88026.0,88013.0,0.49974926]
[1769463151923,0.0001222,88026.0,88011.0,0.02326055]
[1769463152353,0.55733686,88026.0,88011.0,0.02326055]
[1769463153197,0.0001222,88026.0,88011.0,0.02326055]
[1769463153369,0.0001222,88026.0,88009.0,0.52911599]
[1769463153547,0.02319679,88026.0,88009.0,0.52911599]
[1769463153758,0.02319679,88026.0,88010.0,0.0529116]
[1769463153937,0.02319679,88026.0,88010.0,0.58202759]
[1769463154569,0.02307459,88025.0,88010.0,0.0529116]
[1769463154775,0.02307459,88025.0,88006.0,0.52911599]
[1769463155720,0.01136053,88024.0,88006.0,0.52911599]
[1769463155910,0.02307459,88022.0,88006.0,0.52911599]
[1769463156105,0.02307459,88021.0,88006.0,0.52911599]
[1769463156882,0.09124049,88021.0,88006.0,0.52911599]
[1769463157081,0.03443551,88021.0,88006.0,0.52911599]
[1769463157285,0.02307459,88020.0,88006.0,0.52911599]
[1769463157592,0.03443564,88020.0,88006.0,0.52911599]
[1769463157792,0.55721466,88019.0,87990.0,0.52911599]
[1769463157991,0.02307459,88014.0,87990.0,0.39961107]
[1769463158258,0.02307459,88013.0,87991.0,0.52911599]
[1769463158531,0.02307459,88013.0,87993.0,0.52911599]
[1769463158739,0.58028925,88012.0,87990.0,0.90998399]
[1769463158952,0.02307459,88012.0,87994.0,0.52911599]
[1769463164683,0.02307459,88010.0,87994.0,0.52911599]
[1769463164882,0.02307459,88009.0,87987.0,0.00975017]
[1769463165074,0.02307459,88007.0,87988.0,0.52911599]
[1769463165276,0.55721466,88004.0,87980.0,0.380868]
[1769463165534,0.02307459,88001.0,87982.0,0.52911599]
[1769463167677,0.4079824,88002.0,87982.0,0.52911599]
[1769463167845,0.02307459,88001.0,87982.0,0.52911599]
[1769463168641,0.02307459,88001.0,87983.0,0.02336056]
[1769463169145,0.02494232,88001.0,87980.0,0.380868]
[1769463169349,0.51207208,88007.0,87987.0,0.53387535]
[1769463169598,0.5370144,88007.0,87990.0,0.05574198]
[1769463170683,0.01136169,88015.0,87990.0,0.05574198]
[1769463170885,0.5370144,88012.0,87993.0,0.53387535]
[1769463171105,0.5370144,88012.0,87993.0,0.54553204]
[1769463171324,0.5370144,88011.0,87993.0,0.54553204]
[1769463172444,0.49222905,88020.0,87974.0,0.06844975]
[1769463172445,0.02494232,88024.0,87995.0,0.53387535]
[1769463172662,0.02494232,88024.0,87990.0,0.380868]
[1769463172663,0.380868,88020.0,87998.0,0.02336056]
[1769463172869,0.11370031,88019.0,88001.0,0.53387535]
[1769463173072,0.11370031,88018.0,88002.0,0.02336056]
[1769463173381,0.11370031,88017.0,88002.0,0.02336056]
[1769463173512,0.11370031,88016.0,88002.0,0.02336056]
[1769463173737,0.11370031,88016.0,87960.0,0.02336056]
[1769463173738,0.01136596,87982.0,87960.0,0.02336056]
[1769463173956,0.0113657,87984.0,87960.0,0.02336056]
[1769463173957,0.51207208,87976.0,87960.0,0.02382751]
[1769463174228,0.01136531,87987.0,87961.0,0.53387535]
[1769463174402,0.11362335,87986.0,87965.0,0.53387535]
[1769463174613,0.01136518,87988.0,87969.0,0.53387535]
[1769463174827,0.113623,87987.0,87972.0,0.02336056]
[1769463175044,0.113623,87987.0,87972.0,0.55723591]
[1769463175045,0.113623,87986.0,87972.0,0.55723591]
[1769463175257,0.01136531,87987.0,87972.0,0.55723591]
[1769463175477,0.0113657,87984.0,87967.0,0.53387535]
[1769463175688,0.01136583,87983.0,87967.0,0.55723591]
[1769463176142,0.01136596,87982.0,87967.0,0.55723591]
[1769463176505,0.01136583,87983.0,87967.0,0.55723591]
[1769463176827,0.01136596,87982.0,87967.0,0.55723591]
[1769463177043,0.01136583,87983.0,87967.0,0.55723591]
[1769463177469,0.52343765,87985.0,87967.0,0.53387535]
[1769463177706,0.52343765,87985.0,87968.0,0.55723591]
[1769463177905,0.01136557,87985.0,87968.0,0.53387535]
[1769463178062,0.51207208,87992.0,87970.0,0.53387535]
[1769463178369,0.01136505,87989.0,87970.0,0.55723591]
[1769463179179,0.39223292,87990.0,87970.0,0.55723591]
[1769463179341,0.01136505,87989.0,87970.0,0.55723591]
[1769463179707,0.39273991,87990.0,87970.0,0.55723591]
[1769463180531,0.02494232,88000.0,87970.0,0.38137499]
[1769463180664,0.18612376,87999.0,87974.0,0.02336056]
[1769463180869,0.12984302,88003.0,87981.0,0.53387535]
[1769463180870,0.19180485,88003.0,87981.0,0.53387535]
[1769463181069,0.14628485,88003.0,87984.0,0.02336056]
[1769463181297,0.14628485,88003.0,87985.0,0.55723591]
[1769463181495,0.52343519,88004.0,87985.0,0.55723591]
[1769463181699,0.09312184,88003.0,87985.0,0.55723591]
[1769463181908,0.01136337,88002.0,87985.0,0.55723591]
[1769463182532,0.02494232,88002.0,87985.0,0.55723591]
[1769463183125,0.02494232,88002.0,87985.0,0.6129595]
[1769463185405,0.02494232,88002.0,87985.0,0.55723591]
[1769463185694,0.03630479,88009.0,87988.0,0.02336056]
[1769463185896,0.11340393,88008.0,87989.0,0.53387535]
[1769463186090,0.11340393,88007.0,87989.0,0.53387535]
[1769463186252,0.11340393,88006.0,87989.0,0.53387535]
[1769463186459,0.11340393,88005.0,87989.0,0.53387535]
[1769463186640,0.96734102,88010.0,87990.0,0.05572359]
[1769463186641,0.11340393,88004.0,87990.0,0.05572359]
[1769463186842,0.02494232,88007.0,87990.0,0.55447189]
[1769463187060,0.11341611,88006.0,87990.0,0.55447189]
[1769463187260,0.11341611,88005.0,87990.0,0.55447189]
[1769463187483,0.02494232,88007.0,87990.0,0.57783245]
[1769463187644,0.11342987,88006.0,87991.0,0.02558539]
[1769463187863,0.02494232,88007.0,87992.0,0.53387535]
[1769463188042,0.113429,88006.0,87992.0,0.53387535]
[1769463188241,0.01161001,88011.0,87995.0,0.02336056]
[1769463188242,0.0002478,88011.0,87995.0,0.02336056]
[1769463188484,0.11343789,88010.0,87996.0,0.53387535]
[1769463188646,0.11343789,88009.0,87997.0,0.05573759]
[1769463188847,0.11343789,88008.0,87996.0,0.53387535]
[1769463189084,0.11343789,88007.0,87996.0,0.53387535]
[1769463189260,0.11343789,88006.0,87996.0,0.53387535]
[1769463189483,0.0002478,88011.0,87996.0,0.53387535]
[1769463189686,0.11344571,88010.0,87996.0,0.53387535]
[1769463189892,0.11344571,88009.0,87997.0,0.05573759]
[1769463190084,0.0002478,88011.0,87998.0,0.53387535]
[1769463190286,0.11344026,88010.0,87998.0,0.51435941]
[1769463190515,0.11344026,88009.0,87998.0,0.49874436]
[1769463190716,0.0002478,88011.0,87998.0,0.49874436]
[1769463190915,0.11344584,88010.0,87999.0,0.05222449]
[1769463191075,0.11344584,88009.0,87999.0,0.05222449]
[1769463191274,0.0002478,88011.0,87999.0,0.05222449]
[1769463191479,0.11345383,88010.0,87999.0,0.05222449]
[1769463191799,0.11345383,88009.0,87999.0,0.05222449]
[1769463192005,0.0002478,88011.0,87998.0,0.49874436]
[1769463192208,0.11345479,88010.0,87998.0,0.49874436]
[1769463192417,0.0002478,88011.0,87998.0,0.49874436]
[1769463192418,0.11345479,88009.0,87998.0,0.49874436]
[1769463192616,0.0002478,88011.0,87998.0,0.49874436]